bitfinex/quotes_BTCUSD_20241013
["timestamp","ask_amount","ask_price","bid_price","bid_amount"]
[1728809433819,2.22966734,62945.0,62944.0,0.00082]
[1728809438922,2.20477858,62945.0,62944.0,0.00082]
[1728809439152,2.31634023,62945.0,62944.0,0.00082]
[1728809443208,2.34122972,62945.0,62944.0,0.00082]
[1728809444088,2.24342972,62945.0,62944.0,0.00082]
[1728809444807,1.89084406,62945.0,62944.0,0.09462]
[1728809445242,1.89436629,62945.0,62944.0,0.09462]
[1728809446102,1.88536629,62945.0,62944.0,0.09462]
[1728809446523,1.87236629,62945.0,62944.0,0.09462]
[1728809446944,1.91397716,62945.0,62944.0,0.00082]
[1728809447374,1.91897716,62945.0,62944.0,0.00082]
[1728809447791,1.92397716,62945.0,62944.0,0.00082]
[1728809448024,1.92397847,62945.0,62944.0,0.00082]
[1728809448233,1.91897847,62945.0,62944.0,0.00082]
[1728809448442,1.92397847,62945.0,62944.0,0.00082]
[1728809448681,0.63508898,62945.0,62944.0,0.00082]
[1728809450694,0.5874768,62945.0,62944.0,0.00082]
[1728809451666,0.5824768,62945.0,62944.0,0.00082]
[1728809451913,0.5774768,62945.0,62944.0,0.00082]
[1728809452141,0.5864768,62945.0,62944.0,0.00082]
[1728809452375,0.5954768,62945.0,62944.0,0.00082]
[1728809452883,0.5864768,62945.0,62944.0,0.00082]
[1728809453109,0.62036391,62945.0,62944.0,0.00082]
[1728809454265,0.71558828,62945.0,62944.0,0.00082]
[1728809454781,1.97958828,62945.0,62944.0,0.00082]
[1728809457873,2.11592518,62945.0,62944.0,0.00082]
[1728809458409,2.02070081,62945.0,62944.0,0.00082]
[1728809462385,2.04558913,62945.0,62944.0,0.00082]
[1728809468314,2.21908913,62945.0,62944.0,0.00082]
[1728809468527,2.45702513,62945.0,62944.0,0.00082]
[1728809468740,2.43213681,62945.0,62944.0,0.00082]
[1728809469203,2.42313681,62945.0,62944.0,0.00082]
[1728809469449,2.41413681,62945.0,62944.0,0.00082]
[1728809469680,2.44213681,62945.0,62944.0,0.00082]
[1728809470142,2.60350652,62945.0,62944.0,0.00082]
[1728809470608,2.60332197,62945.0,62944.0,0.00082]
[1728809470822,2.58932197,62945.0,62944.0,0.00082]
[1728809471035,2.57532197,62945.0,62944.0,0.00082]
[1728809471268,2.58932197,62945.0,62944.0,0.00082]
[1728809471694,2.57532197,62945.0,62944.0,0.00082]
[1728809471916,2.61421226,62945.0,62944.0,0.00082]
[1728809472124,2.63021226,62945.0,62944.0,0.00082]
[1728809472343,2.62821226,62945.0,62944.0,0.00082]
[1728809472588,2.64221226,62945.0,62944.0,0.00082]
[1728809472821,2.64218543,62945.0,62944.0,0.00082]
[1728809477563,2.48081572,62945.0,62944.0,0.00082]
[1728809478899,2.45592543,62945.0,62944.0,0.00082]
[1728809479341,2.45792543,62945.0,62944.0,0.00082]
[1728809479558,2.45592543,62945.0,62944.0,0.00082]
[1728809479768,2.45792543,62945.0,62944.0,0.00082]
[1728809479980,2.45592543,62945.0,62944.0,0.00082]
[1728809480274,2.60454778,62945.0,62944.0,0.00082]
[1728809480520,2.59054778,62945.0,62944.0,0.00082]
[1728809480719,2.60454778,62945.0,62944.0,0.00082]
[1728809480934,2.59054778,62945.0,62944.0,0.00082]
[1728809481371,2.59254778,62945.0,62944.0,0.00082]
[1728809481587,2.59054778,62945.0,62944.0,0.00082]
[1728809481802,2.70954703,62945.0,62944.0,0.00082]
[1728809482009,2.69754703,62945.0,62944.0,0.00082]
[1728809482221,3.10824511,62945.0,62944.0,0.00082]
[1728809483077,2.97243939,62945.0,62944.0,0.00082]
[1728809483510,2.98643939,62945.0,62944.0,0.00082]
[1728809484607,3.14707894,62945.0,62944.0,0.00082]
[1728809486371,2.98643939,62945.0,62944.0,0.00082]
[1728809487259,1.0489439,62939.0,62928.0,0.23854393]
[1728809487475,1.35293295,62939.0,62928.0,0.23854393]
[1728809487688,1.4114243,62939.0,62925.0,0.09962]
[1728809487928,1.9114243,62939.0,62925.0,0.09962]
[1728809488393,2.3114243,62939.0,62925.0,0.09962]
[1728809488628,2.19665926,62939.0,62925.0,0.09962]
[1728809488843,2.15508839,62939.0,62925.0,0.09962]
[1728809489290,2.39331319,62939.0,62925.0,0.09962]
[1728809489502,2.29782178,62939.0,62925.0,0.09962]
[1728809489718,2.15508839,62939.0,62925.0,0.09962]
[1728809490544,3.41826839,62939.0,62925.0,0.09962]
[1728809490763,3.56100178,62939.0,62925.0,0.09962]
[1728809491374,3.81791884,62939.0,62925.0,0.09962]
[1728809491830,3.79924356,62939.0,62925.0,0.09962]
[1728809492467,3.56096282,62939.0,62925.0,0.09962]
[1728809492690,3.65632203,62939.0,62925.0,0.09962]
[1728809493172,3.56095334,62939.0,62925.0,0.09962]
[1728809495697,3.58584662,62939.0,62925.0,0.09962]
[1728809495904,3.57184662,62939.0,62925.0,0.09962]
[1728809496110,3.73177368,62939.0,62925.0,0.09962]
[1728809496311,3.74577368,62939.0,62925.0,0.09962]
[1728809496629,3.73177368,62939.0,62925.0,0.09962]
[1728809497253,3.74577368,62939.0,62925.0,0.09962]
[1728809497470,3.73177368,62939.0,62925.0,0.09962]
[1728809497875,3.74577368,62939.0,62931.0,0.0998]
[1728809498080,2.79578572,62939.0,62931.0,0.0998]
[1728809498282,2.62820749,62939.0,62937.0,0.0967]
[1728809498493,2.63320674,62939.0,62937.0,0.0967]
[1728809498694,2.62820749,62939.0,62937.0,0.0967]
[1728809498910,2.63320674,62939.0,62937.0,0.0967]
[1728809499358,2.62820749,62939.0,62937.0,0.0967]
[1728809499573,2.74714749,62939.0,62937.0,0.173]
[1728809499787,2.62820749,62939.0,62937.0,0.173]
[1728809499988,2.70936211,62939.0,62937.0,0.173]
[1728809500355,2.61420749,62939.0,62937.0,0.173]
[1728809500560,2.62820749,62939.0,62937.0,0.173]
[1728809500764,2.61420749,62939.0,62937.0,0.173]
[1728809500970,2.60020749,62939.0,62937.0,0.173]
[1728809501178,2.62820749,62939.0,62937.0,0.173]
[1728809502255,2.74714749,62939.0,62937.0,0.173]
[1728809502467,2.74714749,62939.0,62937.0,0.0967]
[1728809503383,0.158886,62938.0,62937.0,0.09334]
[1728809503594,1.58329001,62938.0,62937.0,0.09334]
[1728809503801,1.60019147,62938.0,62937.0,0.09334]
[1728809504023,1.60019147,62938.0,62937.0,0.08834]
[1728809504703,1.60019147,62938.0,62937.0,0.08334]
[1728809504916,1.61419147,62938.0,62937.0,0.08334]
[1728809505348,1.73318833,62938.0,62937.0,0.08334]
[1728809505609,1.74718833,62938.0,62937.0,0.08334]
[1728809506471,2.17207957,62938.0,62937.0,0.08334]
[1728809508644,2.14718833,62938.0,62937.0,0.08334]
[1728809510788,2.02819147,62938.0,62937.0,0.08334]
[1728809512082,2.05308305,62938.0,62937.0,0.08334]
[1728809517604,2.05308305,62938.0,62937.0,0.00082]
[1728809518674,2.02819147,62938.0,62937.0,0.00082]
[1728809523249,2.05308384,62938.0,62937.0,0.00082]
[1728809526281,2.03908384,62938.0,62937.0,0.00082]
[1728809526919,2.05208384,62938.0,62937.0,0.00082]
[1728809527140,2.03808384,62938.0,62937.0,0.00082]
[1728809527598,2.05108384,62938.0,62937.0,0.00082]
[1728809528927,2.02619147,62938.0,62937.0,0.00082]
[1728809529607,2.02783147,62938.0,62937.0,0.00082]
[1728809531895,2.05272366,62938.0,62937.0,0.00082]
[1728809538827,2.02783147,62938.0,62937.0,0.00082]
[1728809539459,2.1707319,62938.0,62937.0,0.00082]
[1728809539870,2.17078232,62938.0,62937.0,0.00082]
[1728809542640,2.26450936,62938.0,62937.0,0.00082]
[1728809543089,2.28940184,62938.0,62937.0,0.00082]
[1728809544019,2.37160184,62938.0,62937.0,0.00082]
[1728809548794,2.34670936,62938.0,62937.0,0.00082]
[1728809549430,2.34670776,62938.0,62937.0,0.00082]
[1728809551822,2.37160056,62938.0,62937.0,0.00082]
[1728809552274,2.73197027,62938.0,62937.0,0.00082]
[1728809552515,2.73696952,62938.0,62937.0,0.00082]
[1728809552982,2.89786759,62938.0,62937.0,0.00082]
[1728809553201,2.98696952,62938.0,62937.0,0.00082]
[1728809554089,2.9864217,62938.0,62937.0,0.00082]
[1728809554329,2.47605199,62938.0,62937.0,0.00082]
[1728809556809,2.46305199,62938.0,62937.0,0.00082]
[1728809557270,2.46405199,62938.0,62937.0,0.00082]
[1728809557718,2.47805199,62938.0,62937.0,0.00082]
[1728809558179,2.46405199,62938.0,62937.0,0.00082]
[1728809558438,2.47805199,62938.0,62937.0,0.00082]
[1728809558915,2.45291473,62938.0,62937.0,0.00082]
[1728809561981,2.47780831,62938.0,62937.0,0.00082]
[1728809563403,2.46380831,62938.0,62937.0,0.00082]
[1728809563669,2.54672903,62938.0,62937.0,0.00082]
[1728809563890,2.57472903,62938.0,62937.0,0.00082]
[1728809564381,2.56072903,62938.0,62937.0,0.00082]
[1728809564613,2.57472903,62938.0,62937.0,0.00082]
[1728809565291,2.71405102,62938.0,62937.0,0.00082]
[1728809568780,2.68915744,62938.0,62937.0,0.00082]
[1728809572960,2.45345271,62938.0,62937.0,0.00082]
[1728809573169,2.71404166,62938.0,62937.0,0.00082]
[1728809576509,2.70904241,62938.0,62937.0,0.00082]
[1728809578815,2.68414839,62938.0,62937.0,0.00082]
[1728809581740,2.70904245,62938.0,62937.0,0.00082]
[1728809586961,3.20904245,62938.0,62937.0,0.00082]
[1728809588908,3.0448264,62938.0,62937.0,0.00082]
[1728809592035,3.0308264,62938.0,62937.0,0.00082]
[1728809592259,3.0168264,62938.0,62937.0,0.00082]
[1728809592473,3.0448264,62938.0,62937.0,0.00082]
[1728809592918,3.0308264,62938.0,62937.0,0.00082]
[1728809593128,3.05736469,62938.0,62937.0,0.00082]
[1728809593342,3.39359685,62938.0,62937.0,0.00082]
[1728809593805,3.37959685,62938.0,62937.0,0.00082]
[1728809594036,3.39359685,62938.0,62937.0,0.00082]
[1728809594490,3.37959685,62938.0,62937.0,0.00082]
[1728809595129,3.39359685,62938.0,62937.0,0.00082]
[1728809595352,3.37948284,62938.0,62937.0,0.00082]
[1728809595778,3.39348284,62938.0,62937.0,0.00082]
[1728809596198,3.23260186,62938.0,62937.0,0.00082]
[1728809598683,3.20770784,62938.0,62937.0,0.00082]
[1728809600218,3.20778286,62938.0,62937.0,0.00082]
[1728809601808,3.2326769,62938.0,62937.0,0.00082]
[1728809604934,3.23278547,62938.0,62937.0,0.00082]
[1728809608885,3.20789143,62938.0,62937.0,0.00082]
[1728809609929,3.11079143,62938.0,62937.0,0.00082]
[1728809610182,2.86722172,62938.0,62937.0,0.00082]
[1728809610870,2.97878337,62938.0,62937.0,0.00082]
[1728809613074,3.00367606,62938.0,62937.0,0.00082]
[1728809614428,2.76628581,62938.0,62937.0,0.00082]
[1728809614640,3.00415714,62938.0,62937.0,0.00082]
[1728809615077,2.50415714,62938.0,62937.0,0.00082]
[1728809616602,2.49015714,62938.0,62937.0,0.00082]
[1728809617451,2.50415714,62938.0,62937.0,0.00082]
[1728809618795,2.47926445,62938.0,62937.0,0.00082]
[1728809621830,2.50415724,62938.0,62937.0,0.00082]
[1728809622474,2.29259559,62938.0,62937.0,0.09212]
[1728809622692,1.89350025,62938.0,62937.0,0.16842]
[1728809623311,2.0126534,62938.0,62937.0,0.16842]
[1728809623489,1.9986534,62938.0,62937.0,0.16842]
[1728809623743,1.9846534,62938.0,62937.0,0.16842]
[1728809623958,1.9986534,62938.0,62937.0,0.16842]
[1728809624175,2.0116534,62938.0,62937.0,0.16842]
[1728809624383,1.87850025,62938.0,62937.0,0.16842]
[1728809624794,1.89150025,62938.0,62937.0,0.16842]
[1728809625016,2.0106534,62938.0,62937.0,0.16842]
[1728809625268,1.89150025,62938.0,62937.0,0.16842]
[1728809626130,1.98679154,62938.0,62937.0,0.16842]
[1728809628314,1.89150025,62938.0,62937.0,0.16842]
[1728809629020,1.86660746,62938.0,62937.0,0.16842]
[1728809630297,1.93804023,62938.0,62937.0,0.16842]
[1728809631919,1.96293081,62938.0,62937.0,0.16842]
[1728809632144,1.89149804,62938.0,62937.0,0.16842]
[1728809632372,0.62831804,62938.0,62937.0,0.16842]
[1728809634532,0.67592931,62938.0,62937.0,0.16842]
[1728809635222,0.62831804,62938.0,62937.0,0.16842]
[1728809638781,0.60342746,62938.0,62937.0,0.16842]
[1728809641636,0.44454146,62938.0,62937.0,0.16842]
[1728809642129,0.44454146,62938.0,62937.0,0.327309]
[1728809642635,0.43154146,62938.0,62937.0,0.327309]
[1728809642880,0.01854146,62938.0,62937.0,0.16842]
[1728809643395,0.01954146,62938.0,62937.0,0.16842]
[1728809643898,0.01854146,62938.0,62937.0,0.16842]
[1728809644153,0.01854146,62938.0,62937.0,0.327309]
[1728809644664,0.01854146,62938.0,62937.0,0.34121507]
[1728809645178,0.00164,62938.0,62937.0,0.34121507]
[1728809646180,0.00164,62938.0,62937.0,0.34321507]
[1728809646687,0.00164,62938.0,62937.0,0.34121507]
[1728809646936,0.00164,62938.0,62937.0,0.34621507]
[1728809650510,0.02197575,62938.0,62937.0,0.34621507]
[1728809650741,0.00164,62938.0,62937.0,0.34621507]
[1728809650968,0.01861569,62938.0,62937.0,0.50943908]
[1728809651198,0.00164,62938.0,62937.0,0.50743908]
[1728809654793,0.00164,62938.0,62937.0,0.53928908]
[1728809655035,0.00164,62938.0,62937.0,0.53928874]
[1728809655277,0.00164,62938.0,62937.0,0.56728874]
[1728809655511,0.00164,62938.0,62937.0,0.56428874]
[1728809655996,0.160526,62938.0,62937.0,0.0396453]
[1728809656227,0.160526,62938.0,62937.0,0.0077953]
[1728809656228,0.1809303,62938.0,62937.0,0.0077953]
[1728809656471,0.1819303,62938.0,62937.0,0.00282]
[1728809657226,0.1829303,62938.0,62937.0,0.00682]
[1728809657467,0.1829303,62938.0,62937.0,0.00282]
[1728809657713,0.1869303,62938.0,62937.0,0.00282]
[1728809657949,0.1819303,62938.0,62937.0,0.00282]
[1728809658456,0.4270443,62938.0,62937.0,0.17442]
[1728809658946,0.4280443,62938.0,62937.0,0.18539559]
[1728809659425,0.0270443,62938.0,62937.0,0.17939559]
[1728809659685,0.0320443,62938.0,62937.0,0.17939559]
[1728809659923,0.0320443,62938.0,62937.0,0.17442]
[1728809660401,0.0320443,62938.0,62937.0,0.17939564]
[1728809661581,0.0320443,62938.0,62937.0,0.33828464]
[1728809661840,0.01164,62938.0,62937.0,0.33828464]
[1728809662068,0.01164,62938.0,62937.0,0.17939564]
[1728809662533,0.01164,62938.0,62937.0,0.33828464]
[1728809662970,0.01164,62938.0,62937.0,0.17939564]
[1728809663249,0.03203003,62938.0,62937.0,0.17939564]
[1728809663753,0.03203003,62938.0,62937.0,0.33828464]
[1728809665922,0.03203003,62938.0,62937.0,0.333309]
[1728809666172,0.03203003,62938.0,62937.0,0.33828456]
[1728809666405,0.03203003,62938.0,62937.0,0.17939556]
[1728809668401,0.03203003,62938.0,62937.0,0.33828456]
[1728809668896,0.02703003,62938.0,62937.0,0.17939556]
[1728809669392,0.02703003,62938.0,62937.0,0.09609556]
[1728809669632,0.02403003,62938.0,62937.0,0.09609556]
[1728809669866,0.02503003,62938.0,62937.0,0.09609556]
[1728809670096,0.02403003,62938.0,62937.0,0.09609556]
[1728809670308,0.02403003,62938.0,62937.0,0.10009556]
[1728809670984,0.18291603,62938.0,62937.0,0.00979556]
[1728809671231,0.26221603,62938.0,62937.0,0.00482]
[1728809671491,0.66221603,62938.0,62937.0,0.00882]
[1728809671972,0.66221603,62938.0,62937.0,0.00482]
[1728809672224,0.66321603,62938.0,62937.0,0.00482]
[1728809672476,0.66321603,62938.0,62937.0,0.00082]
[1728809672681,0.66521603,62938.0,62937.0,0.00082]
[1728809673210,0.69310557,62938.0,62937.0,0.00082]
[1728809673442,0.69610557,62938.0,62937.0,0.00082]
[1728809678777,0.67121603,62938.0,62937.0,0.00082]
[1728809683028,0.76361603,62938.0,62937.0,0.00082]
[1728809693166,0.78850647,62938.0,62937.0,0.00082]
[1728809694556,2.05168647,62938.0,62937.0,0.00082]
[1728809698725,2.02679603,62938.0,62937.0,0.00082]
[1728809703266,2.05168608,62938.0,62937.0,0.00082]
[1728809708735,2.02679603,62938.0,62937.0,0.00082]
[1728809709380,2.07435927,62938.0,62937.0,0.00082]
[1728809710081,2.02679603,62938.0,62937.0,0.00082]
[1728809710376,2.07439017,62938.0,62937.0,0.00082]
[1728809710635,1.98199017,62938.0,62937.0,0.00082]
[1728809711875,2.00687989,62938.0,62937.0,0.00082]
[1728809712339,0.74369989,62938.0,62937.0,0.00082]
[1728809713407,0.69610575,62938.0,62937.0,0.00082]
[1728809714473,0.76753924,62938.0,62937.0,0.00082]
[1728809715383,0.69610575,62938.0,62937.0,0.00082]
[1728809716511,0.7913504,62938.0,62937.0,0.00082]
[1728809718317,2.0545304,62938.0,62937.0,0.00082]
[1728809718882,2.02964068,62938.0,62937.0,0.00082]
[1728809721095,1.94834068,62938.0,62937.0,0.00082]
[1728809721908,1.97322998,62938.0,62937.0,0.00082]
[1728809728847,1.94834068,62938.0,62937.0,0.00082]
[1728809730169,0.68516068,62938.0,62937.0,0.00082]
[1728809730856,0.43103003,62938.0,62937.0,0.250609]
[1728809731065,0.43103003,62938.0,62937.0,0.33368494]
[1728809731496,0.03103003,62938.0,62937.0,0.17479594]
[1728809731913,0.03103003,62938.0,62937.0,0.33368494]
[1728809731914,0.02803003,62938.0,62937.0,0.33368494]
[1728809732124,0.02803003,62938.0,62937.0,0.17479594]
[1728809732340,0.02903003,62938.0,62937.0,0.17479594]
[1728809733182,0.02303003,62938.0,62937.0,0.17479594]
[1728809733394,0.02403003,62938.0,62937.0,0.17479594]
[1728809734691,0.02403003,62938.0,62937.0,0.33368457]
[1728809735507,0.02403003,62938.0,62937.0,0.17479557]
[1728809740718,0.02403003,62938.0,62937.0,0.09669557]
[1728809740985,0.02403003,62938.0,62937.0,0.00579557]
[1728809741202,0.18291603,62938.0,62937.0,0.00579557]
[1728809741407,0.58291603,62938.0,62937.0,0.00579557]
[1728809741616,0.58291603,62938.0,62937.0,0.00082]
[1728809742068,0.77217768,62938.0,62937.0,0.00082]
[1728809743044,0.77117768,62938.0,62937.0,0.00082]
[1728809743301,0.77717768,62938.0,62937.0,0.00082]
[1728809743545,0.78417768,62938.0,62937.0,0.00082]
[1728809743778,0.82484196,62938.0,62937.0,0.00082]
[1728809744237,0.83184196,62938.0,62937.0,0.00082]
[1728809751835,0.85673199,62938.0,62937.0,0.00082]
[1728809752802,0.85666523,62938.0,62937.0,0.00082]
[1728809753962,2.11984523,62938.0,62937.0,0.00082]
[1728809757086,2.07224771,62938.0,62937.0,0.00082]
[1728809757583,2.14364372,62938.0,62937.0,0.00082]
[1728809757830,2.11984656,62938.0,62937.0,0.00082]
[1728809758087,2.07224771,62938.0,62937.0,0.00082]
[1728809758322,2.14364372,62938.0,62937.0,0.00082]
[1728809758541,2.07224771,62938.0,62937.0,0.00082]
[1728809758769,2.04735768,62938.0,62937.0,0.00082]
[1728809759280,2.3754777,62938.0,62937.0,0.00082]
[1728809759535,2.30408169,62938.0,62937.0,0.00082]
[1728809762059,2.32897381,62938.0,62937.0,0.00082]
[1728809765835,2.31497381,62938.0,62937.0,0.00082]
[1728809766054,2.32497381,62938.0,62937.0,0.00082]
[1728809766279,2.33597381,62938.0,62937.0,0.00082]
[1728809766486,2.32497381,62938.0,62937.0,0.00082]
[1728809766719,2.33797381,62938.0,62937.0,0.00082]
[1728809767165,2.32797381,62938.0,62937.0,0.00082]
[1728809767584,2.33997381,62938.0,62937.0,0.00082]
[1728809767804,2.43997381,62938.0,62937.0,0.00082]
[1728809768768,2.41508169,62938.0,62937.0,0.00082]
[1728809773223,2.43997465,62938.0,62937.0,0.00082]
[1728809775224,2.55873593,62938.0,62937.0,0.00082]
[1728809777676,2.67437005,62938.0,62937.0,0.00082]
[1728809778094,2.55873593,62938.0,62937.0,0.00082]
[1728809778733,2.53384297,62938.0,62937.0,0.00082]
[1728809779157,2.41508169,62938.0,62937.0,0.00082]
[1728809782815,2.43997508,62938.0,62937.0,0.00082]
[1728809788687,2.41508169,62938.0,62937.0,0.00082]
[1728809789142,2.5764514,62938.0,62937.0,0.00082]
[1728809789808,2.74899113,62938.0,62937.0,0.00082]
[1728809790032,2.5784514,62938.0,62937.0,0.00082]
[1728809790260,2.72106039,62938.0,62937.0,0.00082]
[1728809790501,2.96104656,62938.0,62937.0,0.00082]
[1728809790949,2.95904656,62938.0,62937.0,0.00082]
[1728809791175,2.71906039,62938.0,62937.0,0.00082]
[1728809791437,3.32056584,62938.0,62937.0,0.00082]
[1728809791869,3.20900419,62938.0,62937.0,0.00082]
[1728809793212,3.23389835,62938.0,62937.0,0.00082]
[1728809793439,2.84128936,62938.0,62937.0,0.00082]
[1728809793654,2.84147865,62938.0,62937.0,0.00082]
[1728809795009,2.81647865,62938.0,62937.0,0.00082]
[1728809795254,2.82947865,62938.0,62937.0,0.00082]
[1728809795919,2.84347865,62938.0,62937.0,0.00082]
[1728809796159,2.83047865,62938.0,62937.0,0.00082]
[1728809796655,3.08047865,62938.0,62937.0,0.00082]
[1728809798332,3.09447865,62938.0,62937.0,0.00082]
[1728809798565,3.09470663,62938.0,62937.0,0.00082]
[1728809799251,2.84470663,62938.0,62937.0,0.00082]
[1728809799937,2.84670663,62938.0,62937.0,0.00082]
[1728809800153,2.84470663,62938.0,62937.0,0.00082]
[1728809800368,3.09470663,62938.0,62937.0,0.00082]
[1728809801322,3.09670663,62938.0,62937.0,0.00082]
[1728809801799,3.20826828,62938.0,62937.0,0.00082]
[1728809802073,3.27424561,62938.0,62937.0,0.00082]
[1728809802295,3.05189782,62938.0,62937.0,0.00082]
[1728809802512,3.03789782,62938.0,62937.0,0.00082]
[1728809802730,3.02389782,62938.0,62937.0,0.00082]
[1728809802945,2.57441345,62938.0,62937.0,0.00082]
[1728809803191,3.55179103,62938.0,62937.0,0.00082]
[1728809805004,3.68753757,62938.0,62937.0,0.00082]
[1728809805243,3.52689687,62938.0,62937.0,0.00082]
[1728809805702,3.30377357,62938.0,62937.0,0.00082]
[1728809805930,3.52689687,62938.0,62937.0,0.00082]
[1728809808057,3.55179193,62938.0,62937.0,0.00082]
[1728809811744,3.52689687,62938.0,62937.0,0.00082]
[1728809812743,3.30377357,62938.0,62937.0,0.00082]
[1728809812971,3.52689687,62938.0,62937.0,0.00082]
[1728809814865,3.55179195,62938.0,62937.0,0.00082]
[1728809818808,3.52689687,62938.0,62937.0,0.00082]
[1728809820978,3.52689687,62938.0,62925.0,0.00082]
[1728809820979,0.158916,62926.0,62925.0,0.00082]
[1728809821233,0.43170166,62926.0,62925.0,0.00082]
[1728809821492,0.44988907,62926.0,62925.0,0.00082]
[1728809821722,0.99264187,62926.0,62925.0,0.00082]
[1728809821954,1.01753835,62926.0,62925.0,0.00082]
[1728809822184,1.02553835,62926.0,62925.0,0.00082]
[1728809822426,1.03253835,62926.0,62925.0,0.00082]
[1728809823105,1.53253835,62926.0,62925.0,0.00082]
[1728809824609,1.56543129,62926.0,62925.0,0.00082]
[1728809824852,1.81133533,62926.0,62925.0,0.00082]
[1728809825075,2.97134839,62926.0,62925.0,0.00082]
[1728809825312,3.0744889,62926.0,62925.0,0.00082]
[1728809826786,3.0674889,62926.0,62925.0,0.00082]
[1728809827035,2.71804964,62926.0,62925.0,0.09642]
[1728809827273,2.71004964,62926.0,62925.0,0.09642]
[1728809827519,2.70204964,62926.0,62925.0,0.09642]
[1728809827765,2.71904964,62926.0,62925.0,0.09642]
[1728809828922,2.69415316,62926.0,62925.0,0.09642]
[1728809829834,2.69413974,62926.0,62925.0,0.09642]
[1728809830066,2.19413974,62926.0,62925.0,0.09642]
[1728809831869,2.2190351,62926.0,62925.0,0.09642]
[1728809833924,2.21911211,62926.0,62925.0,0.09642]
[1728809835090,2.0578881,62926.0,62925.0,0.09642]
[1728809838784,2.03299274,62926.0,62925.0,0.09642]
[1728809842755,2.03299274,62926.0,62925.0,0.09642]
[1728809843833,2.03299783,62926.0,62925.0,0.09642]
[1728809851832,2.0578932,62926.0,62925.0,0.09642]
[1728809856290,2.0578932,62926.0,62925.0,0.00082]
[1728809858141,2.0578838,62926.0,62925.0,0.00082]
[1728809858837,2.03298843,62926.0,62925.0,0.00082]
[1728809863219,2.05788394,62926.0,62925.0,0.00082]
[1728809864547,2.04988394,62926.0,62925.0,0.00082]
[1728809864761,2.06288394,62926.0,62925.0,0.00082]
[1728809864982,2.05388394,62926.0,62925.0,0.00082]
[1728809865242,2.06788394,62926.0,62925.0,0.00082]
[1728809865445,2.05488394,62926.0,62925.0,0.00082]
[1728809865712,2.06788394,62926.0,62925.0,0.00082]
[1728809867456,1.89217892,62926.0,62925.0,0.00082]
[1728809867669,2.0678748,62926.0,62925.0,0.00082]
[1728809868779,2.04297929,62926.0,62925.0,0.00082]
[1728809870599,2.01597929,62926.0,62925.0,0.00082]
[1728809870817,2.04397929,62926.0,62925.0,0.00082]
[1728809871265,2.01597929,62926.0,62925.0,0.00082]
[1728809871488,2.02997929,62926.0,62925.0,0.00082]
[1728809871727,2.18676705,62926.0,62925.0,0.00082]
[1728809871951,2.21166269,62926.0,62925.0,0.00082]
[1728809873553,2.3149766,62926.0,62925.0,0.00082]
[1728809874719,2.2869766,62926.0,62925.0,0.00082]
[1728809874950,2.3009766,62926.0,62925.0,0.00082]
[1728809875169,2.3149766,62926.0,62925.0,0.00082]
[1728809875441,2.3009766,62926.0,62925.0,0.00082]
[1728809876786,2.3149766,62926.0,62925.0,0.00082]
[1728809878872,2.29008096,62926.0,62925.0,0.00082]
[1728809879754,2.27608096,62926.0,62925.0,0.00082]
[1728809880009,2.26208096,62926.0,62925.0,0.00082]
[1728809880211,2.29008096,62926.0,62925.0,0.00082]
[1728809880659,2.27608096,62926.0,62925.0,0.00082]
[1728809880905,2.29008096,62926.0,62925.0,0.00082]
[1728809881978,2.31497678,62926.0,62925.0,0.00082]
[1728809885317,2.31515266,62926.0,62925.0,0.00082]
[1728809888902,2.29025684,62926.0,62925.0,0.00082]
[1728809893289,2.31515271,62926.0,62925.0,0.00082]
[1728809894018,2.31513535,62926.0,62925.0,0.00082]
[1728809898837,2.29023948,62926.0,62925.0,0.00082]
[1728809903177,2.28713537,62926.0,62925.0,0.00082]
[1728809903673,2.30113537,62926.0,62925.0,0.00082]
[1728809903903,2.31513537,62926.0,62925.0,0.00082]
[1728809904351,2.31516933,62926.0,62925.0,0.00082]
[1728809905239,2.30116933,62926.0,62925.0,0.00082]
[1728809905466,2.31516933,62926.0,62925.0,0.00082]
[1728809908954,2.29027344,62926.0,62925.0,0.00082]
[1728809911858,2.31516931,62926.0,62925.0,0.00082]
[1728809918971,2.29027344,62926.0,62925.0,0.00082]
[1728809921910,2.31516933,62926.0,62925.0,0.00082]
[1728809928846,2.29027344,62926.0,62925.0,0.00082]
[1728809933170,2.31516923,62926.0,62925.0,0.00082]
[1728809937473,2.31513009,62926.0,62925.0,0.00082]
[1728809938840,2.2902343,62926.0,62925.0,0.00082]
[1728809941932,2.3151301,62926.0,62925.0,0.00082]
[1728809948785,2.2902343,62926.0,62925.0,0.00082]
[1728809950392,2.29023346,62926.0,62925.0,0.00082]
[1728809952033,2.31512932,62926.0,62925.0,0.00082]
[1728809955092,2.31513923,62926.0,62925.0,0.00082]
[1728809955313,2.39683923,62926.0,62925.0,0.00082]
[1728809958895,2.37194337,62926.0,62925.0,0.00082]
[1728809961870,2.39683961,62926.0,62925.0,0.00082]
[1728809964628,2.39678336,62926.0,62925.0,0.00082]
[1728809968993,2.37188712,62926.0,62925.0,0.00082]
[1728809969225,2.37191555,62926.0,62925.0,0.00082]
[1728809970857,2.04408847,62926.0,62925.0,0.17742]
[1728809971085,2.04408847,62926.0,62925.0,0.18239695]
[1728809971086,1.70936741,62926.0,62925.0,0.18239695]
[1728809971312,1.75700163,62926.0,62925.0,0.18239695]
[1728809971536,1.75700163,62926.0,62925.0,0.34131595]
[1728809971537,1.30936741,62926.0,62925.0,0.34131595]
[1728809971756,1.30936741,62926.0,62925.0,0.336339]
[1728809971983,1.28136741,62926.0,62925.0,0.17742]
[1728809972202,1.29036741,62926.0,62925.0,0.17742]
[1728809972467,1.29936741,62926.0,62925.0,0.17742]
[1728809972673,1.29036741,62926.0,62925.0,0.17742]
[1728809972913,1.29836741,62926.0,62925.0,0.18676534]
[1728809973627,1.28936741,62926.0,62925.0,0.18676534]
[1728809973856,1.29736741,62926.0,62925.0,0.18676534]
[1728809976601,1.28936741,62926.0,62925.0,0.18676534]
[1728809977042,1.29436741,62926.0,62925.0,0.18676534]
[1728809977497,1.28936741,62926.0,62925.0,0.18676534]
[1728809977690,1.29136741,62926.0,62925.0,0.18676534]
[1728809977946,1.28336741,62926.0,62925.0,0.18676534]
[1728809978167,1.28536741,62926.0,62925.0,0.18676534]
[1728809980648,1.44428341,62926.0,62925.0,0.18676534]